[Event "Titled Tuesday Blitz January 31 Early 2023"]
[White "Ramirez Allo, Eduardo"]
[Black "Onslow, Alfie"]
[WhiteFideId "2224178"]
[BlackFideId "436976"]
[WhiteElo "2274"]
[BlackElo "2157"]
[Result "0-1"]
[Round "09"]
[TimeControl "180+2"]
[Date "2023.01.31"]
[WhiteClock "0:00:05"]
[BlackClock "0:00:05"]

1. d4 {[%clk 0:03:00]}  d5 {[%clk 0:02:59]} 2. c4 {[%clk 0:03:01]}  e6 {[%clk 0:02:59]} 3. Nf3 {[%clk 0:03:02]}  c6 {[%clk 0:02:59]} 4. Nbd2 {[%clk 0:03:01]}  f5 {[%clk 0:02:58]} 5. g3 {[%clk 0:03:01]}  Nf6 {[%clk 0:02:58]} 6. Bg2 {[%clk 0:03:02]}  Be7 {[%clk 0:02:56]} 7. O-O {[%clk 0:03:03]}  O-O {[%clk 0:02:57]} 8. Ne5 {[%clk 0:03:00]}  Nbd7 {[%clk 0:02:57]} 9. Ndf3 {[%clk 0:03:01]}  Nxe5 {[%clk 0:02:44]} 10. Nxe5 {[%clk 0:03:00]}  Bd7 {[%clk 0:02:45]} 11. Rb1 {[%clk 0:02:51]}  b5 {[%clk 0:02:26]} 12. cxb5 {[%clk 0:02:44]}  cxb5 {[%clk 0:02:26]} 13. Bf4 {[%clk 0:02:41]}  Ne4 {[%clk 0:02:23]} 14. Rc1 {[%clk 0:02:38]}  Rc8 {[%clk 0:02:15]} 15. Qd3 {[%clk 0:02:36]}  Nd6 {[%clk 0:02:08]} 16. Rxc8 {[%clk 0:02:26]}  Qxc8 {[%clk 0:02:07]} 17. Rc1 {[%clk 0:02:27]}  Qb7 {[%clk 0:02:07]} 18. Bf1 {[%clk 0:02:12]}  Nc4 {[%clk 0:01:54]} 19. b3 {[%clk 0:01:56]}  Nxe5 {[%clk 0:01:52]} 20. Bxe5 {[%clk 0:01:57]}  Rc8 {[%clk 0:01:47]} 21. Rxc8+ {[%clk 0:01:47]}  Qxc8 {[%clk 0:01:48]} 22. e3 {[%clk 0:01:44]}  Qc1 {[%clk 0:01:41]} 23. h4 {[%clk 0:01:20]}  Qb2 {[%clk 0:01:36]} 24. a4 {[%clk 0:01:17]}  a6 {[%clk 0:01:35]} 25. h5 {[%clk 0:01:14]}  Bb4 {[%clk 0:01:19]} 26. Qd1 {[%clk 0:01:06]}  Qa2 {[%clk 0:00:44]} 27. g4 {[%clk 0:01:02]}  bxa4 {[%clk 0:00:41]} 28. gxf5 {[%clk 0:01:01]}  exf5 {[%clk 0:00:26]} 29. Qf3 {[%clk 0:00:54]}  Qxb3 {[%clk 0:00:24]} 30. Qg3 {[%clk 0:00:54]}  Bf8 {[%clk 0:00:17]} 31. Bxg7 {[%clk 0:00:44]}  a3 {[%clk 0:00:08]} 32. Be5+ {[%clk 0:00:12]}  Kf7 {[%clk 0:00:07]} 33. Qg5 {[%clk 0:00:06]}  Qb6 {[%clk 0:00:06]} 34. h6 {[%clk 0:00:04]}  a2 {[%clk 0:00:05]} 35. Kg2 {[%clk 0:00:04]}  Qg6 {[%clk 0:00:05]} 36. Be2 {[%clk 0:00:05]}  Qxg5+ {[%clk 0:00:05]} 0-1


[Site "https://www.chess.com"]

[Event "Titled Tuesday Blitz January 31 Early 2023"]
[White "Mohammed, Zozek Salah Mohammed"]
[Black "Alfaro, William"]
[WhiteFideId "4803361"]
[BlackFideId "6100457"]
[WhiteElo "2210"]
[BlackElo "2134"]
[Result "0-1"]
[Round "09"]
[TimeControl "180+2"]
[Date "2023.01.31"]
[WhiteClock "0:00:21"]
[BlackClock "0:00:17"]

1. d4 {[%clk 0:02:55]}  Nf6 {[%clk 0:02:59]} 2. Nf3 {[%clk 0:02:55]}  g6 {[%clk 0:02:58]} 3. g3 {[%clk 0:02:56]}  Bg7 {[%clk 0:02:58]} 4. Bg2 {[%clk 0:02:57]}  O-O {[%clk 0:02:58]} 5. O-O {[%clk 0:02:58]}  d6 {[%clk 0:02:57]} 6. c4 {[%clk 0:02:58]}  Nc6 {[%clk 0:02:54]} 7. Nc3 {[%clk 0:02:59]}  e5 {[%clk 0:02:55]} 8. dxe5 {[%clk 0:02:58]}  dxe5 {[%clk 0:02:54]} 9. Bg5 {[%clk 0:02:58]}  Qxd1 {[%clk 0:02:52]} 10. Rfxd1 {[%clk 0:02:59]}  Bg4 {[%clk 0:02:51]} 11. h3 {[%clk 0:02:56]}  Bxf3 {[%clk 0:02:50]} 12. Bxf3 {[%clk 0:02:57]}  Nd4 {[%clk 0:02:49]} 13. Bg2 {[%clk 0:02:49]}  c6 {[%clk 0:02:48]} 14. e3 {[%clk 0:02:47]}  Ne6 {[%clk 0:02:34]} 15. Bxf6 {[%clk 0:02:46]}  Bxf6 {[%clk 0:02:35]} 16. Ne4 {[%clk 0:02:47]}  Bg7 {[%clk 0:02:28]} 17. Rd7 {[%clk 0:02:45]}  Rfd8 {[%clk 0:02:27]} 18. Rxb7 {[%clk 0:02:43]}  Rab8 {[%clk 0:02:27]} 19. Rxb8 {[%clk 0:02:40]}  Rxb8 {[%clk 0:02:28]} 20. b3 {[%clk 0:02:41]}  f5 {[%clk 0:02:28]} 21. Nd6 {[%clk 0:02:20]}  Rd8 {[%clk 0:02:27]} 22. Nb7 {[%clk 0:02:19]}  Rd2 {[%clk 0:02:25]} 23. Bxc6 {[%clk 0:02:16]}  Kf8 {[%clk 0:02:24]} 24. a3 {[%clk 0:02:08]}  e4 {[%clk 0:02:23]} 25. Rb1 {[%clk 0:02:08]}  Ng5 {[%clk 0:02:23]} 26. Kg2 {[%clk 0:02:00]}  Ra2 {[%clk 0:02:15]} 27. a4 {[%clk 0:01:53]}  Nf3 {[%clk 0:02:15]} 28. Nc5 {[%clk 0:01:50]}  Bc3 {[%clk 0:02:10]} 29. Ne6+ {[%clk 0:01:46]}  Ke7 {[%clk 0:02:09]} 30. Nf4 {[%clk 0:01:40]}  Be1 {[%clk 0:02:01]} 31. Nd3 {[%clk 0:01:28]}  exd3 {[%clk 0:01:41]} 32. Bxf3 {[%clk 0:01:23]}  Rxf2+ {[%clk 0:01:41]} 33. Kg1 {[%clk 0:01:20]}  d2 {[%clk 0:01:32]} 34. Bd1 {[%clk 0:01:17]}  g5 {[%clk 0:01:24]} 35. b4 {[%clk 0:01:14]}  f4 {[%clk 0:01:24]} 36. exf4 {[%clk 0:01:14]}  gxf4 {[%clk 0:01:25]} 37. gxf4 {[%clk 0:01:13]}  Rxf4 {[%clk 0:01:25]} 38. c5 {[%clk 0:01:14]}  Kd7 {[%clk 0:01:24]} 39. b5 {[%clk 0:01:14]}  Bf2+ {[%clk 0:01:23]} 40. Kg2 {[%clk 0:01:12]}  Bxc5 {[%clk 0:01:24]} 41. a5 {[%clk 0:01:11]}  Rc4 {[%clk 0:01:20]} 42. Rb2 {[%clk 0:01:07]}  Bb4 {[%clk 0:01:18]} 43. b6 {[%clk 0:01:05]}  axb6 {[%clk 0:01:15]} 44. axb6 {[%clk 0:01:05]}  Kc6 {[%clk 0:01:15]} 45. Be2 {[%clk 0:01:01]}  Rd4 {[%clk 0:01:10]} 46. Bd3 {[%clk 0:00:54]}  h6 {[%clk 0:01:07]} 47. Kf2 {[%clk 0:00:53]}  Kxb6 {[%clk 0:01:06]} 48. Ke2 {[%clk 0:00:52]}  Kc5 {[%clk 0:01:02]} 49. Bc2 {[%clk 0:00:51]}  Rh4 {[%clk 0:00:54]} 50. Rb3 {[%clk 0:00:51]}  Kc4 {[%clk 0:00:50]} 51. Rd3 {[%clk 0:00:50]}  Bc3 {[%clk 0:00:47]} 52. Rg3 {[%clk 0:00:44]}  h5 {[%clk 0:00:41]} 53. Bg6 {[%clk 0:00:42]}  Rf4 {[%clk 0:00:38]} 54. Bxh5 {[%clk 0:00:37]}  Kb3 {[%clk 0:00:31]} 55. Ke3 {[%clk 0:00:32]}  Rf5 {[%clk 0:00:28]} 56. Be2 {[%clk 0:00:27]}  Re5+ {[%clk 0:00:28]} 57. Kd3 {[%clk 0:00:27]}  Rd5+ {[%clk 0:00:23]} 58. Ke3 {[%clk 0:00:26]}  Kc2 {[%clk 0:00:20]} 59. h4 {[%clk 0:00:22]}  Re5+ {[%clk 0:00:17]} 60. Kf2 {[%clk 0:00:20]}  Rxe2+ {[%clk 0:00:17]} 61. Kxe2 {[%clk 0:00:21]}  d1=Q+ {[%clk 0:00:17]} 0-1


[Site "https://www.chess.com"]

[Event "Titled Tuesday Blitz January 31 Early 2023"]
[White "Manukian, Artak"]
[Black "Koridze, Lile"]
[WhiteFideId "13301373"]
[BlackFideId "13612514"]
[WhiteElo "2196"]
[BlackElo "2191"]
[Result "1-0"]
[Round "09"]
[TimeControl "180+2"]
[Date "2023.01.31"]
[WhiteClock "0:00:26"]
[BlackClock "0:01:45"]

1. e4 {[%clk 0:02:26]}  c5 {[%clk 0:02:59]} 2. Nf3 {[%clk 0:02:23]}  d6 {[%clk 0:02:59]} 3. Bb5+ {[%clk 0:02:22]}  Nd7 {[%clk 0:02:59]} 4. O-O {[%clk 0:02:21]}  a6 {[%clk 0:02:59]} 5. Bd3 {[%clk 0:02:17]}  Ngf6 {[%clk 0:02:58]} 6. Re1 {[%clk 0:02:17]}  e5 {[%clk 0:02:58]} 7. a4 {[%clk 0:02:15]}  Be7 {[%clk 0:02:58]} 8. c3 {[%clk 0:02:16]}  O-O {[%clk 0:02:58]} 9. Bc4 {[%clk 0:02:14]}  Rb8 {[%clk 0:02:58]} 10. d4 {[%clk 0:02:10]}  b5 {[%clk 0:02:57]} 11. axb5 {[%clk 0:02:11]}  axb5 {[%clk 0:02:57]} 12. Bb3 {[%clk 0:02:07]}  Qb6 {[%clk 0:02:48]} 13. dxe5 {[%clk 0:01:59]}  Nxe5 {[%clk 0:02:47]} 14. Nxe5 {[%clk 0:01:58]}  dxe5 {[%clk 0:02:48]} 15. Nd2 {[%clk 0:01:51]}  c4 {[%clk 0:02:44]} 16. Bc2 {[%clk 0:01:47]}  Bc5 {[%clk 0:02:45]} 17. Rf1 {[%clk 0:01:43]}  Ng4 {[%clk 0:02:33]} 18. Qe2 {[%clk 0:01:35]}  Be6 {[%clk 0:02:26]} 19. h3 {[%clk 0:01:13]}  Nf6 {[%clk 0:02:22]} 20. Nf3 {[%clk 0:01:12]}  Qc7 {[%clk 0:02:15]} 21. Bg5 {[%clk 0:00:58]}  Nd7 {[%clk 0:02:11]} 22. Rfd1 {[%clk 0:00:55]}  f6 {[%clk 0:02:10]} 23. Be3 {[%clk 0:00:52]}  b4 {[%clk 0:02:08]} 24. Rxd7 {[%clk 0:00:44]}  Bxd7 {[%clk 0:02:07]} 25. Qxc4+ {[%clk 0:00:43]}  Kh8 {[%clk 0:02:02]} 26. Qxc5 {[%clk 0:00:43]}  Qxc5 {[%clk 0:02:00]} 27. Bxc5 {[%clk 0:00:44]}  bxc3 {[%clk 0:01:48]} 28. Bxf8 {[%clk 0:00:40]}  cxb2 {[%clk 0:01:48]} 29. Rb1 {[%clk 0:00:39]}  Rxf8 {[%clk 0:01:47]} 30. Rxb2 {[%clk 0:00:39]}  Rc8 {[%clk 0:01:46]} 31. Bd3 {[%clk 0:00:34]}  g6 {[%clk 0:01:45]} 32. Rb7 {[%clk 0:00:32]}  Be6 {[%clk 0:01:45]} 33. Rb6 {[%clk 0:00:30]}  Re8 {[%clk 0:01:45]} 34. Bb5 {[%clk 0:00:30]}  Re7 {[%clk 0:01:45]} 35. Bc6 {[%clk 0:00:26]}  Kg7 {[%clk 0:01:45]} 36. Rb7 {[%clk 0:00:26]} 1-0


[Site "https://www.chess.com"]

[Event "Titled Tuesday Blitz January 31 Early 2023"]
[White "Guliev, Logman"]
[Black "Rose, Felix"]
[WhiteFideId "13400061"]
[BlackFideId "5105722"]
[WhiteElo "2250"]
[BlackElo "2091"]
[Result "0-1"]
[Round "09"]
[TimeControl "180+2"]
[Date "2023.01.31"]
[WhiteClock "0:00:09"]
[BlackClock "0:00:10"]

1. e4 {[%clk 0:03:00]}  e5 {[%clk 0:02:58]} 2. Nf3 {[%clk 0:03:00]}  Nc6 {[%clk 0:02:56]} 3. Bb5 {[%clk 0:02:59]}  a6 {[%clk 0:02:56]} 4. Ba4 {[%clk 0:02:59]}  Nf6 {[%clk 0:02:56]} 5. O-O {[%clk 0:02:59]}  b5 {[%clk 0:02:55]} 6. Bb3 {[%clk 0:02:58]}  Be7 {[%clk 0:02:55]} 7. d4 {[%clk 0:02:57]}  d6 {[%clk 0:02:40]} 8. c3 {[%clk 0:02:56]}  O-O {[%clk 0:02:34]} 9. h3 {[%clk 0:02:51]}  Bb7 {[%clk 0:02:15]} 10. Re1 {[%clk 0:02:48]}  h6 {[%clk 0:02:05]} 11. Nbd2 {[%clk 0:02:45]}  Re8 {[%clk 0:02:04]} 12. Nf1 {[%clk 0:02:36]}  Bf8 {[%clk 0:01:53]} 13. Ng3 {[%clk 0:02:35]}  g6 {[%clk 0:01:47]} 14. a3 {[%clk 0:02:29]}  Bg7 {[%clk 0:01:43]} 15. Ba2 {[%clk 0:02:23]}  d5 {[%clk 0:01:30]} 16. Nxe5 {[%clk 0:02:19]}  Nxe5 {[%clk 0:01:21]} 17. dxe5 {[%clk 0:02:19]}  Nxe4 {[%clk 0:01:20]} 18. Nxe4 {[%clk 0:01:57]}  dxe4 {[%clk 0:01:20]} 19. Qg4 {[%clk 0:01:56]}  Bd5 {[%clk 0:00:37]} 20. Rd1 {[%clk 0:01:46]}  c6 {[%clk 0:00:13]} 21. Bf4 {[%clk 0:01:41]}  h5 {[%clk 0:00:12]} 22. Qg3 {[%clk 0:01:38]}  Qd7 {[%clk 0:00:11]} 23. c4 {[%clk 0:01:20]}  bxc4 {[%clk 0:00:11]} 24. Bxc4 {[%clk 0:01:21]}  Qe6 {[%clk 0:00:09]} 25. Bf1 {[%clk 0:01:14]}  Bxe5 {[%clk 0:00:09]} 26. Bxe5 {[%clk 0:01:14]}  Qxe5 {[%clk 0:00:09]} 27. Qe3 {[%clk 0:01:14]}  Qxb2 {[%clk 0:00:08]} 28. Rab1 {[%clk 0:01:12]}  Qe5 {[%clk 0:00:08]} 29. Rb7 {[%clk 0:01:11]}  a5 {[%clk 0:00:07]} 30. Rdb1 {[%clk 0:01:07]}  Rab8 {[%clk 0:00:06]} 31. Qa7 {[%clk 0:01:01]}  Rxb7 {[%clk 0:00:06]} 32. Rxb7 {[%clk 0:00:59]}  e3 {[%clk 0:00:06]} 33. fxe3 {[%clk 0:00:59]}  Qxe3+ {[%clk 0:00:07]} 34. Qxe3 {[%clk 0:00:59]}  Rxe3 {[%clk 0:00:07]} 35. a4 {[%clk 0:00:53]}  Ra3 {[%clk 0:00:07]} 36. Ra7 {[%clk 0:00:47]}  Rxa4 {[%clk 0:00:07]} 37. g4 {[%clk 0:00:46]}  hxg4 {[%clk 0:00:07]} 38. hxg4 {[%clk 0:00:46]}  Rxg4+ {[%clk 0:00:08]} 39. Kf2 {[%clk 0:00:46]}  a4 {[%clk 0:00:08]} 40. Ke3 {[%clk 0:00:46]}  Rb4 {[%clk 0:00:09]} 41. Be2 {[%clk 0:00:40]}  Kg7 {[%clk 0:00:09]} 42. Bd1 {[%clk 0:00:36]}  Bb3 {[%clk 0:00:08]} 43. Bf3 {[%clk 0:00:36]}  c5 {[%clk 0:00:07]} 44. Bc6 {[%clk 0:00:36]}  c4 {[%clk 0:00:06]} 45. Bd5 {[%clk 0:00:22]}  c3 {[%clk 0:00:03]} 46. Rxf7+ {[%clk 0:00:19]}  Kh6 {[%clk 0:00:04]} 47. Rd7 {[%clk 0:00:15]}  Bxd5 {[%clk 0:00:04]} 48. Rxd5 {[%clk 0:00:16]}  a3 {[%clk 0:00:04]} 49. Ra5 {[%clk 0:00:16]}  c2 {[%clk 0:00:04]} 50. Kd2 {[%clk 0:00:16]}  Rc4 {[%clk 0:00:05]} 51. Kc1 {[%clk 0:00:16]}  Rc3 {[%clk 0:00:06]} 52. Ra8 {[%clk 0:00:11]}  Kg5 {[%clk 0:00:06]} 53. Ra7 {[%clk 0:00:09]}  Kg4 {[%clk 0:00:05]} 54. Ra4+ {[%clk 0:00:06]}  Kf5 {[%clk 0:00:05]} 55. Ra5+ {[%clk 0:00:06]}  Kf4 {[%clk 0:00:05]} 56. Ra4+ {[%clk 0:00:07]}  Ke3 {[%clk 0:00:06]} 57. Rg4 {[%clk 0:00:05]}  a2 {[%clk 0:00:05]} 58. Ra4 {[%clk 0:00:06]}  g5 {[%clk 0:00:06]} 59. Rxa2 {[%clk 0:00:06]}  g4 {[%clk 0:00:06]} 60. Ra8 {[%clk 0:00:07]}  g3 {[%clk 0:00:07]} 61. Re8+ {[%clk 0:00:08]}  Kf2 {[%clk 0:00:07]} 62. Rf8+ {[%clk 0:00:08]}  Kg1 {[%clk 0:00:08]} 63. Rg8 {[%clk 0:00:09]}  g2 {[%clk 0:00:08]} 64. Rg7 {[%clk 0:00:09]}  Rf3 {[%clk 0:00:08]} 65. Kxc2 {[%clk 0:00:09]}  Kf2 {[%clk 0:00:09]} 66. Kd2 {[%clk 0:00:08]}  g1=Q {[%clk 0:00:10]} 67. Rxg1 {[%clk 0:00:08]}  Kxg1 {[%clk 0:00:11]} 68. Ke2 {[%clk 0:00:09]}  Kg2 {[%clk 0:00:11]} 69. Ke1 {[%clk 0:00:09]}  Ra3 {[%clk 0:00:10]} 0-1


[Site "https://www.chess.com"]

[Event "Titled Tuesday Blitz January 31 Early 2023"]
[White "Kornyukov, Alexey"]
[Black "Donskov, Anatoly"]
[WhiteFideId "4150457"]
[BlackFideId "24143413"]
[WhiteElo "2452"]
[BlackElo "2279"]
[Result "0-1"]
[Round "09"]
[TimeControl "180+2"]
[Date "2023.01.31"]
[WhiteClock "0:01:20"]
[BlackClock "0:01:08"]

1. e4 {[%clk 0:02:55]}  c5 {[%clk 0:02:59]} 2. Nf3 {[%clk 0:02:55]}  e6 {[%clk 0:03:00]} 3. c3 {[%clk 0:02:54]}  d5 {[%clk 0:03:00]} 4. exd5 {[%clk 0:02:53]}  Qxd5 {[%clk 0:03:01]} 5. d4 {[%clk 0:02:53]}  Nf6 {[%clk 0:03:01]} 6. Be2 {[%clk 0:02:53]}  Be7 {[%clk 0:03:02]} 7. O-O {[%clk 0:02:53]}  O-O {[%clk 0:03:02]} 8. c4 {[%clk 0:02:54]}  Qd8 {[%clk 0:02:58]} 9. Nc3 {[%clk 0:02:52]}  cxd4 {[%clk 0:02:53]} 10. Nxd4 {[%clk 0:02:51]}  e5 {[%clk 0:02:53]} 11. Ndb5 {[%clk 0:02:50]}  Nc6 {[%clk 0:02:47]} 12. Be3 {[%clk 0:02:49]}  a6 {[%clk 0:02:39]} 13. Qxd8 {[%clk 0:02:48]}  Rxd8 {[%clk 0:02:40]} 14. Bb6 {[%clk 0:02:45]}  axb5 {[%clk 0:02:35]} 15. Bxd8 {[%clk 0:02:43]}  Bxd8 {[%clk 0:02:33]} 16. cxb5 {[%clk 0:02:43]}  Nd4 {[%clk 0:02:33]} 17. Bc4 {[%clk 0:02:42]}  Be6 {[%clk 0:02:19]} 18. Bxe6 {[%clk 0:02:41]}  Nxe6 {[%clk 0:02:20]} 19. a4 {[%clk 0:02:36]}  Nd4 {[%clk 0:02:16]} 20. Rfd1 {[%clk 0:02:27]}  Ba5 {[%clk 0:02:14]} 21. Na2 {[%clk 0:02:24]}  Nb3 {[%clk 0:02:01]} 22. Rab1 {[%clk 0:02:19]}  h5 {[%clk 0:01:54]} 23. Nc3 {[%clk 0:02:02]}  Rc8 {[%clk 0:01:52]} 24. Nd5 {[%clk 0:01:42]}  Nxd5 {[%clk 0:01:14]} 25. Rxd5 {[%clk 0:01:42]}  f6 {[%clk 0:01:15]} 26. Rd7 {[%clk 0:01:41]}  b6 {[%clk 0:01:15]} 27. Rd3 {[%clk 0:01:34]}  Nc5 {[%clk 0:01:14]} 28. Rd6 {[%clk 0:01:22]}  Nxa4 {[%clk 0:01:08]} 29. b4 {[%clk 0:01:20]}  Bxb4 {[%clk 0:01:08]} 0-1


[Site "https://www.chess.com"]

[Event "Titled Tuesday Blitz January 31 Early 2023"]
[White "Nguyen Hong Nhung"]
[Black "Hrbek, Stepan"]
[WhiteFideId "12412201"]
[BlackFideId "393479"]
[WhiteElo "2003"]
[BlackElo "2306"]
[Result "1-0"]
[Round "09"]
[TimeControl "180+2"]
[Date "2023.01.31"]
[WhiteClock "0:00:05"]
[BlackClock "0:00:03"]

1. e4 {[%clk 0:02:58]}  c5 {[%clk 0:02:59]} 2. Nc3 {[%clk 0:02:58]}  Nc6 {[%clk 0:02:59]} 3. f4 {[%clk 0:02:56]}  g6 {[%clk 0:02:59]} 4. Nf3 {[%clk 0:02:57]}  Bg7 {[%clk 0:02:59]} 5. Bc4 {[%clk 0:02:57]}  e6 {[%clk 0:02:59]} 6. O-O {[%clk 0:02:58]}  Nge7 {[%clk 0:02:58]} 7. d3 {[%clk 0:02:59]}  d5 {[%clk 0:02:57]} 8. Bb3 {[%clk 0:02:58]}  O-O {[%clk 0:02:55]} 9. Qe1 {[%clk 0:02:58]}  a6 {[%clk 0:02:41]} 10. a4 {[%clk 0:02:55]}  Nd4 {[%clk 0:02:40]} 11. Nxd4 {[%clk 0:02:53]}  cxd4 {[%clk 0:02:40]} 12. Ne2 {[%clk 0:02:54]}  dxe4 {[%clk 0:02:28]} 13. dxe4 {[%clk 0:02:55]}  d3 {[%clk 0:02:29]} 14. Nc3 {[%clk 0:02:54]}  Nc6 {[%clk 0:02:27]} 15. Rf3 {[%clk 0:02:06]}  dxc2 {[%clk 0:02:04]} 16. Bxc2 {[%clk 0:02:07]}  Nd4 {[%clk 0:02:04]} 17. Rf2 {[%clk 0:02:00]}  Nxc2 {[%clk 0:02:00]} 18. Rxc2 {[%clk 0:02:01]}  b6 {[%clk 0:02:00]} 19. e5 {[%clk 0:02:00]}  Bb7 {[%clk 0:02:00]} 20. Be3 {[%clk 0:02:00]}  Qc7 {[%clk 0:01:55]} 21. Qf2 {[%clk 0:01:58]}  Rac8 {[%clk 0:01:50]} 22. Rac1 {[%clk 0:01:54]}  Qc4 {[%clk 0:01:43]} 23. Bxb6 {[%clk 0:01:50]}  f6 {[%clk 0:01:25]} 24. Nb5 {[%clk 0:01:23]}  Qxa4 {[%clk 0:01:16]} 25. Nd6 {[%clk 0:01:23]}  Rxc2 {[%clk 0:01:13]} 26. Qxc2 {[%clk 0:01:21]}  Qxc2 {[%clk 0:01:02]} 27. Rxc2 {[%clk 0:01:22]}  Bd5 {[%clk 0:01:02]} 28. Bd4 {[%clk 0:01:15]}  fxe5 {[%clk 0:00:53]} 29. fxe5 {[%clk 0:01:16]}  h5 {[%clk 0:00:52]} 30. Rc7 {[%clk 0:01:12]}  Rf4 {[%clk 0:00:50]} 31. Bc3 {[%clk 0:01:06]}  Rg4 {[%clk 0:00:45]} 32. g3 {[%clk 0:01:02]}  Rg5 {[%clk 0:00:31]} 33. Rc8+ {[%clk 0:00:45]}  Kh7 {[%clk 0:00:30]} 34. Rc7 {[%clk 0:00:45]}  h4 {[%clk 0:00:29]} 35. Kf2 {[%clk 0:00:45]}  hxg3+ {[%clk 0:00:25]} 36. hxg3 {[%clk 0:00:46]}  Rh5 {[%clk 0:00:19]} 37. Ne8 {[%clk 0:00:45]}  Rh2+ {[%clk 0:00:13]} 38. Ke3 {[%clk 0:00:42]}  Kh6 {[%clk 0:00:13]} 39. Rxg7 {[%clk 0:00:34]}  Rg2 {[%clk 0:00:13]} 40. Ra7 {[%clk 0:00:24]}  Rxg3+ {[%clk 0:00:13]} 41. Kd4 {[%clk 0:00:23]}  Kg5 {[%clk 0:00:08]} 42. Nf6 {[%clk 0:00:22]}  Bb3 {[%clk 0:00:06]} 43. Rxa6 {[%clk 0:00:21]}  Rg1 {[%clk 0:00:06]} 44. Ne4+ {[%clk 0:00:18]}  Kf4 {[%clk 0:00:04]} 45. Nf6 {[%clk 0:00:12]}  Rd1+ {[%clk 0:00:03]} 46. Kc5 {[%clk 0:00:13]}  g5 {[%clk 0:00:02]} 47. Ra8 {[%clk 0:00:13]}  g4 {[%clk 0:00:01]} 48. Rg8 {[%clk 0:00:14]}  g3 {[%clk 0:00:01]} 49. Nh5+ {[%clk 0:00:14]}  Ke3 {[%clk 0:00:01]} 50. Rxg3+ {[%clk 0:00:14]}  Ke4 {[%clk 0:00:02]} 51. Rg4+ {[%clk 0:00:13]}  Kf5 {[%clk 0:00:02]} 52. Rd4 {[%clk 0:00:13]}  Re1 {[%clk 0:00:02]} 53. Rd8 {[%clk 0:00:12]}  Rc1 {[%clk 0:00:02]} 54. Ng7+ {[%clk 0:00:11]}  Kg6 {[%clk 0:00:02]} 55. Nxe6 {[%clk 0:00:12]}  Bxe6 {[%clk 0:00:03]} 56. Rd6 {[%clk 0:00:12]}  Kf5 {[%clk 0:00:03]} 57. Kb5 {[%clk 0:00:10]}  Rb1 {[%clk 0:00:04]} 58. Rd2 {[%clk 0:00:10]}  Rc1 {[%clk 0:00:03]} 59. Rf2+ {[%clk 0:00:09]}  Ke4 {[%clk 0:00:04]} 60. Rf6 {[%clk 0:00:10]}  Kd5 {[%clk 0:00:04]} 61. Rf4 {[%clk 0:00:08]}  Bf5 {[%clk 0:00:03]} 62. Rxf5 {[%clk 0:00:08]}  Ke4 {[%clk 0:00:04]} 63. Rf6 {[%clk 0:00:08]}  Kd5 {[%clk 0:00:04]} 64. Rd6+ {[%clk 0:00:08]}  Ke4 {[%clk 0:00:05]} 65. Rd4+ {[%clk 0:00:09]}  Kf5 {[%clk 0:00:05]} 66. Rd2 {[%clk 0:00:10]}  Ke6 {[%clk 0:00:06]} 67. Re2 {[%clk 0:00:10]}  Rb1 {[%clk 0:00:05]} 68. Kc4 {[%clk 0:00:11]}  Ra1 {[%clk 0:00:05]} 69. b4 {[%clk 0:00:11]}  Ra4 {[%clk 0:00:05]} 70. Kb5 {[%clk 0:00:11]}  Ra3 {[%clk 0:00:05]} 71. Re3 {[%clk 0:00:11]}  Ra8 {[%clk 0:00:05]} 72. Kc4 {[%clk 0:00:11]}  Rc8+ {[%clk 0:00:05]} 73. Kb3 {[%clk 0:00:11]}  Rb8 {[%clk 0:00:04]} 74. Bd4 {[%clk 0:00:11]}  Kd5 {[%clk 0:00:05]} 75. Bb2 {[%clk 0:00:11]}  Ke6 {[%clk 0:00:04]} 76. Ba3 {[%clk 0:00:10]}  Rb7 {[%clk 0:00:04]} 77. Kc4 {[%clk 0:00:10]}  Rc7+ {[%clk 0:00:04]} 78. Kb5 {[%clk 0:00:11]}  Rc8 {[%clk 0:00:05]} 79. Ka5 {[%clk 0:00:10]}  Ra8+ {[%clk 0:00:05]} 80. Kb6 {[%clk 0:00:10]}  Rb8+ {[%clk 0:00:06]} 81. Kc7 {[%clk 0:00:10]}  Rb5 {[%clk 0:00:06]} 82. Kc6 {[%clk 0:00:10]}  Rb8 {[%clk 0:00:05]} 83. b5 {[%clk 0:00:11]}  Ra8 {[%clk 0:00:06]} 84. b6 {[%clk 0:00:11]}  Rc8+ {[%clk 0:00:06]} 85. Kb7 {[%clk 0:00:11]}  Rc4 {[%clk 0:00:04]} 86. Bd6 {[%clk 0:00:12]}  Ra4 {[%clk 0:00:03]} 87. Kc8 {[%clk 0:00:12]}  Rf4 {[%clk 0:00:02]} 88. b7 {[%clk 0:00:11]}  Rf7 {[%clk 0:00:02]} 89. Rc3 {[%clk 0:00:06]}  Kf5 {[%clk 0:00:03]} 90. Rc7 {[%clk 0:00:05]} 1-0


[Site "https://www.chess.com"]

[Event "Titled Tuesday Blitz January 31 Early 2023"]
[White "Ivanova, Karina"]
[Black "Jovic, Stanoje"]
[WhiteFideId "24139750"]
[BlackFideId "905020"]
[WhiteElo "2085"]
[BlackElo "2075"]
[Result "1-0"]
[Round "09"]
[TimeControl "180+2"]
[Date "2023.01.31"]
[WhiteClock "0:00:34"]
[BlackClock "0:00:01"]

1. d4 {[%clk 0:02:58]}  Nf6 {[%clk 0:02:59]} 2. Nf3 {[%clk 0:02:58]}  e6 {[%clk 0:02:59]} 3. g3 {[%clk 0:02:57]}  b5 {[%clk 0:02:59]} 4. c4 {[%clk 0:02:52]}  bxc4 {[%clk 0:02:57]} 5. Qa4 {[%clk 0:02:44]}  a5 {[%clk 0:02:49]} 6. Qxc4 {[%clk 0:02:42]}  Bb4+ {[%clk 0:02:41]} 7. Nc3 {[%clk 0:02:37]}  Ba6 {[%clk 0:02:36]} 8. Qb3 {[%clk 0:02:37]}  O-O {[%clk 0:02:33]} 9. Bg2 {[%clk 0:02:34]}  d5 {[%clk 0:02:25]} 10. a3 {[%clk 0:02:27]}  Bc4 {[%clk 0:02:16]} 11. Qc2 {[%clk 0:02:27]}  Bxc3+ {[%clk 0:02:14]} 12. Qxc3 {[%clk 0:02:26]}  Ne4 {[%clk 0:01:58]} 13. Qc2 {[%clk 0:02:24]}  a4 {[%clk 0:01:55]} 14. Nd2 {[%clk 0:02:22]}  Nxd2 {[%clk 0:01:50]} 15. Bxd2 {[%clk 0:02:21]}  c5 {[%clk 0:01:41]} 16. dxc5 {[%clk 0:02:15]}  Na6 {[%clk 0:01:34]} 17. Qxa4 {[%clk 0:01:53]}  Nxc5 {[%clk 0:01:32]} 18. Qc2 {[%clk 0:01:52]}  Nb3 {[%clk 0:01:26]} 19. Rd1 {[%clk 0:01:50]}  Rc8 {[%clk 0:01:22]} 20. Bb4 {[%clk 0:01:42]}  Re8 {[%clk 0:01:10]} 21. O-O {[%clk 0:01:40]}  Qb6 {[%clk 0:01:04]} 22. Rfe1 {[%clk 0:01:31]}  Nd4 {[%clk 0:00:52]} 23. Qd2 {[%clk 0:01:30]}  Nb3 {[%clk 0:00:39]} 24. Qc2 {[%clk 0:01:28]}  Qb5 {[%clk 0:00:34]} 25. e3 {[%clk 0:01:21]}  e5 {[%clk 0:00:32]} 26. Qf5 {[%clk 0:01:10]}  g6 {[%clk 0:00:25]} 27. Qf6 {[%clk 0:01:07]}  Rc6 {[%clk 0:00:19]} 28. Qg5 {[%clk 0:01:05]}  Kg7 {[%clk 0:00:15]} 29. g4 {[%clk 0:00:58]}  h6 {[%clk 0:00:14]} 30. Qh4 {[%clk 0:00:57]}  g5 {[%clk 0:00:12]} 31. Qg3 {[%clk 0:00:57]}  f6 {[%clk 0:00:11]} 32. f4 {[%clk 0:00:49]}  Be2 {[%clk 0:00:07]} 33. Rd2 {[%clk 0:00:42]}  Bc4 {[%clk 0:00:04]} 34. h4 {[%clk 0:00:39]}  exf4 {[%clk 0:00:02]} 35. exf4 {[%clk 0:00:39]}  gxf4 {[%clk 0:00:02]} 36. Qf2 {[%clk 0:00:34]}  Rxe1+ {[%clk 0:00:01]} 37. Qxe1 {[%clk 0:00:34]} 1-0


[Site "https://www.chess.com"]